[Event "Elitserien 2019/2020, round 1-3"]
[Site "Uppsala University, Gamla torget, Uppsala, Sweden"]
[Date "2019.10.18"]
[Round "1.10"]
[White "Grigorov, Grigor"]
[Black "Golubka, Petro"]
[Result "1/2-1/2"]
[TimeControl "90 minutes for 40 moves + 30 minutes for the rest of the game + 30 seconds per move from move one."]
[WhiteTitle "GM"]
[BlackTitle "IM"]
[WhiteFideId "2907313"]
[BlackFideId "14114224"]
[WhiteElo "2504"]
[BlackElo "2479"]

1. d4 {[%clk 01:30:54]} {[%emt 00:00:04]} d5 {[%clk 01:30:51]} {[%emt
00:00:10]} 2. c4 {[%clk 01:31:11]} {[%emt 00:00:12]} dxc4 {[%clk 01:30:56]}
{[%emt 00:00:27]} 3. e3 {[%clk 01:31:30]} {[%emt 00:00:09]} Nf6 {[%clk
01:31:21]} {[%emt 00:00:06]} 4. Bxc4 {[%clk 01:31:50]} {[%emt 00:00:10]} e6
{[%clk 01:31:49]} {[%emt 00:00:02]} 5. Nf3 {[%clk 01:32:01]} {[%emt 00:00:18]}
c5 {[%clk 01:32:15]} {[%emt 00:00:05]} 6. O-O {[%clk 01:32:11]} {[%emt
00:00:19]} a6 {[%clk 01:32:44]} {[%emt 00:00:02]} 7. dxc5 {[%clk 01:32:12]}
{[%emt 00:00:28]} Bxc5 {[%clk 01:33:11]} {[%emt 00:00:04]} 8. Qxd8+ {[%clk
01:32:19]} {[%emt 00:00:23]} Kxd8 {[%clk 01:33:40]} {[%emt 00:00:02]} 9. Ne5
{[%clk 01:32:28]} {[%emt 00:00:19]} Ke7 {[%clk 01:34:08]} {[%emt 00:00:03]} 10.
Be2 {[%clk 01:32:42]} {[%emt 00:00:15]} Nbd7 {[%clk 01:34:08]} {[%emt
00:00:32]} 11. Nd3 {[%clk 01:32:44]} {[%emt 00:00:26]} b6 {[%clk 01:31:25]}
{[%emt 00:03:15]} 12. Nxc5 {[%clk 01:30:09]} {[%emt 00:03:04]} bxc5 {[%clk
01:31:48]} {[%emt 00:00:07]} 13. Nc3 {[%clk 01:23:29]} {[%emt 00:07:09]} a5
{[%clk 01:31:40]} {[%emt 00:00:39]} 14. b3 {[%clk 01:23:09]} {[%emt 00:00:49]}
Ba6 {[%clk 01:31:54]} {[%emt 00:00:18]} 15. Bxa6 {[%clk 01:23:13]} {[%emt
00:00:25]} Rxa6 {[%clk 01:32:20]} {[%emt 00:00:04]} 16. Ba3 {[%clk 01:23:06]}
{[%emt 00:00:37]} Nd5 {[%clk 01:31:47]} {[%emt 00:01:03]} 17. Rac1 {[%clk
01:17:36]} {[%emt 00:05:59]} Rc8 {[%clk 01:29:23]} {[%emt 00:02:54]} 18. Rfd1
{[%clk 01:04:01]} {[%emt 00:14:05]} Nxc3 {[%clk 01:26:04]} {[%emt 00:03:51]} 19.
Rxc3 {[%clk 01:04:23]} {[%emt 00:00:07]} Rd6 {[%clk 01:26:24]} {[%emt
00:00:09]} 20. Rxd6 {[%clk 01:02:00]} {[%emt 00:02:54]} Kxd6 {[%clk 01:26:52]}
{[%emt 00:00:02]} 21. Kf1 {[%clk 01:02:01]} {[%emt 00:00:28]} Nb6 {[%clk
01:21:53]} {[%emt 00:05:30]} 22. Ke2 {[%clk 01:00:52]} 1/2-1/2

[Event "Elitserien 2019/2020, round 1-3"]
[Site "Uppsala University, Gamla torget, Uppsala, Sweden"]
[Date "2019.10.18"]
[Round "1.11"]
[White "Lindberg, Bengt"]
[Black "Sagit, Rauan"]
[Result "1-0"]
[TimeControl "90 minutes for 40 moves + 30 minutes for the rest of the game + 30 seconds per move from move one."]
[WhiteTitle "IM"]
[BlackTitle "IM"]
[WhiteFideId "1700359"]
[BlackFideId "1708376"]
[WhiteElo "2397"]
[BlackElo "2443"]

1. e4 {[%clk 01:28:29]} {[%emt 00:02:29]} c5 {[%clk 01:29:42]} {[%emt
00:01:17]} 2. Nf3 {[%clk 01:28:52]} {[%emt 00:00:09]} d6 {[%clk 01:29:34]}
{[%emt 00:00:37]} 3. d4 {[%clk 01:29:17]} {[%emt 00:00:06]} cxd4 {[%clk
01:29:59]} {[%emt 00:00:06]} 4. Nxd4 {[%clk 01:29:42]} {[%emt 00:00:04]} Nf6
{[%clk 01:30:11]} {[%emt 00:00:19]} 5. Nc3 {[%clk 01:30:05]} {[%emt 00:00:06]}
a6 {[%clk 01:30:26]} {[%emt 00:00:14]} 6. Be3 {[%clk 01:30:26]} {[%emt
00:00:09]} e5 {[%clk 01:30:00]} {[%emt 00:00:57]} 7. Nb3 {[%clk 01:30:49]}
{[%emt 00:00:07]} Be6 {[%clk 01:30:02]} {[%emt 00:00:27]} 8. f3 {[%clk
01:31:11]} {[%emt 00:00:08]} h5 {[%clk 01:29:44]} {[%emt 00:00:49]} 9. Nd5
{[%clk 01:30:52]} {[%emt 00:00:49]} Bxd5 {[%clk 01:29:20]} {[%emt 00:00:54]} 10.
exd5 {[%clk 01:29:59]} {[%emt 00:01:23]} Nbd7 {[%clk 01:29:17]} {[%emt
00:00:33]} 11. Qd2 {[%clk 01:29:53]} {[%emt 00:00:35]} Qc7 {[%clk 01:28:28]}
{[%emt 00:01:18]} 12. Na5 {[%clk 01:18:08]} {[%emt 00:12:16]} Rc8 {[%clk
01:26:09]} {[%emt 00:02:49]} 13. c4 {[%clk 01:16:32]} {[%emt 00:02:06]} g6
{[%clk 01:16:15]} {[%emt 00:10:24]} 14. Be2 {[%clk 01:11:30]} {[%emt 00:05:33]}
Bg7 {[%clk 01:11:59]} {[%emt 00:04:44]} 15. Rc1 {[%clk 01:05:49]} {[%emt
00:06:12]} O-O {[%clk 01:08:59]} {[%emt 00:03:29]} 16. O-O {[%clk 00:59:23]}
{[%emt 00:06:58]} b6 {[%clk 01:05:23]} {[%emt 00:04:05]} 17. Nc6 {[%clk
00:58:38]} {[%emt 00:01:16]} Nb8 {[%clk 01:04:18]} {[%emt 00:01:33]} 18. Nxb8
{[%clk 00:47:17]} {[%emt 00:11:53]} Rxb8 {[%clk 01:03:54]} {[%emt 00:00:54]} 19.
b4 {[%clk 00:47:38]} {[%emt 00:00:09]} Qd7 {[%clk 00:53:01]} {[%emt 00:11:23]}
20. Rfd1 {[%clk 00:40:12]} {[%emt 00:07:56]} Rfd8 {[%clk 00:48:41]} {[%emt
00:04:50]} 21. h3 {[%clk 00:32:34]} {[%emt 00:08:08]} Kh7 {[%clk 00:46:34]}
{[%emt 00:02:36]} 22. Bd3 {[%clk 00:30:05]} {[%emt 00:02:59]} b5 {[%clk
00:42:11]} {[%emt 00:04:55]} 23. Bg5 {[%clk 00:22:28]} {[%emt 00:08:05]} bxc4
{[%clk 00:41:46]} {[%emt 00:00:55]} 24. Rxc4 {[%clk 00:22:40]} {[%emt
00:00:19]} Rdc8 {[%clk 00:37:50]} {[%emt 00:04:25]} 25. Rxc8 {[%clk 00:19:27]}
{[%emt 00:03:44]} Qxc8 {[%clk 00:36:58]} {[%emt 00:01:22]} 26. a3 {[%clk
00:19:35]} {[%emt 00:00:22]} Qb7 {[%clk 00:33:51]} {[%emt 00:03:36]} 27. Be3
{[%clk 00:15:11]} {[%emt 00:04:55]} Re8 {[%clk 00:29:16]} {[%emt 00:05:05]} 28.
Bc4 {[%clk 00:11:25]} {[%emt 00:04:16]} Rc8 {[%clk 00:25:35]} {[%emt 00:04:10]}
29. Qd3 {[%clk 00:10:50]} {[%emt 00:01:06]} Ra8 {[%clk 00:25:45]} {[%emt
00:00:19]} 30. Rb1 {[%clk 00:10:47]} {[%emt 00:00:33]} Bh6 {[%clk 00:22:37]}
{[%emt 00:03:38]} 31. Bf2 {[%clk 00:10:59]} {[%emt 00:00:19]} Kg7 {[%clk
00:17:29]} {[%emt 00:05:38]} 32. a4 {[%clk 00:10:54]} {[%emt 00:00:36]} Bf4
{[%clk 00:15:49]} {[%emt 00:02:09]} 33. a5 {[%clk 00:09:27]} {[%emt 00:01:56]}
Qc8 {[%clk 00:15:23]} {[%emt 00:00:56]} 34. Rb3 {[%clk 00:06:01]} {[%emt
00:03:56]} Nd7 {[%clk 00:12:03]} {[%emt 00:03:51]} 35. Qf1 {[%clk 00:05:18]}
{[%emt 00:01:12]} Bg5 {[%clk 00:10:50]} {[%emt 00:01:43]} 36. Rb1 {[%clk
00:03:48]} {[%emt 00:02:00]} Bd8 {[%clk 00:09:51]} {[%emt 00:01:27]} 37. Bb3
{[%clk 00:03:15]} {[%emt 00:01:05]} Nf6 {[%clk 00:09:26]} {[%emt 00:00:55]} 38.
Qd3 {[%clk 00:03:23]} {[%emt 00:00:23]} Qb7 {[%clk 00:08:40]} {[%emt 00:01:16]}
39. Bc4 {[%clk 00:03:10]} {[%emt 00:00:42]} Qc8 {[%clk 00:08:05]} {[%emt
00:01:05]} 40. Bb3 {[%clk 00:03:28]} {[%emt 00:00:13]} Qb7 {[%clk 00:07:25]}
{[%emt 00:01:07]} 41. Bc4 {[%clk 00:15:55]} {[%emt 00:18:06]} Qc8 {[%clk
00:36:36]} {[%emt 00:01:19]} 42. Be3 {[%clk 00:15:19]} {[%emt 00:01:05]} Nd7
{[%clk 00:33:29]} {[%emt 00:03:38]} 43. Bb3 {[%clk 00:14:38]} {[%emt 00:01:11]}
Qb7 {[%clk 00:28:20]} {[%emt 00:05:38]} 44. Ba4 {[%clk 00:14:45]} {[%emt
00:00:23]} Nb8 {[%clk 00:23:48]} {[%emt 00:05:03]} 45. Qb3 {[%clk 00:14:35]}
{[%emt 00:00:39]} f5 {[%clk 00:22:59]} {[%emt 00:01:19]} 46. Rc1 {[%clk
00:14:29]} {[%emt 00:00:36]} f4 {[%clk 00:23:12]} {[%emt 00:00:18]} 47. Bf2
{[%clk 00:13:38]} {[%emt 00:01:21]} Nd7 {[%clk 00:23:15]} {[%emt 00:00:27]} 48.
Bc6 {[%clk 00:10:04]} {[%emt 00:04:03]} Qc7 {[%clk 00:22:30]} {[%emt 00:01:15]}
49. Qc4 {[%clk 00:09:46]} {[%emt 00:00:48]} Rb8 {[%clk 00:21:59]} {[%emt
00:01:01]} 50. Rb1 {[%clk 00:06:27]} {[%emt 00:03:49]} Qc8 {[%clk 00:21:04]}
{[%emt 00:01:26]} 51. Qd3 {[%clk 00:05:58]} {[%emt 00:00:58]} Nf6 {[%clk
00:20:09]} {[%emt 00:01:26]} 52. Ba7 {[%clk 00:05:51]} {[%emt 00:00:36]} Ra8
{[%clk 00:20:18]} {[%emt 00:00:21]} 53. Bxa8 {[%clk 00:05:31]} {[%emt
00:00:52]} Qxa8 {[%clk 00:20:42]} {[%emt 00:00:05]} 54. Bf2 {[%clk 00:05:40]}
{[%emt 00:00:20]} g5 {[%clk 00:19:14]} {[%emt 00:01:59]} 55. Rc1 {[%clk
00:05:17]} {[%emt 00:00:52]} Nxd5 {[%clk 00:18:56]} {[%emt 00:00:48]} 56. Qe4
{[%clk 00:04:41]} {[%emt 00:01:06]} Kf6 {[%clk 00:18:58]} {[%emt 00:00:29]} 57.
Rd1 {[%clk 00:04:15]} {[%emt 00:00:55]} Ke6 {[%clk 00:18:59]} {[%emt 00:00:30]}
58. Qc4 {[%clk 00:02:27]} {[%emt 00:02:18]} Qb7 {[%clk 00:19:02]} {[%emt
00:00:27]} 59. Kf1 {[%clk 00:02:04]} {[%emt 00:00:52]} Qa8 {[%clk 00:18:35]}
{[%emt 00:00:57]} 60. Bb6 {[%clk 00:02:15]} {[%emt 00:00:20]} Bf6 {[%clk
00:18:02]} {[%emt 00:01:03]} 61. Kg1 {[%clk 00:02:00]} {[%emt 00:00:45]} Qb7
{[%clk 00:17:06]} {[%emt 00:01:26]} 62. b5 {[%clk 00:01:41]} {[%emt 00:00:48]}
axb5 {[%clk 00:17:19]} {[%emt 00:00:17]} 63. Qxb5 {[%clk 00:01:56]} {[%emt
00:00:16]} 1-0

[Event "Elitserien 2019/2020, round 1-3"]
[Site "Uppsala University, Gamla torget, Uppsala, Sweden"]
[Date "2019.10.18"]
[Round "1.12"]
[White "Wedberg, Tom"]
[Black "Alle Wahlin, Ambjorn"]
[Result "1-0"]
[TimeControl "90 minutes for 40 moves + 30 minutes for the rest of the game + 30 seconds per move from move one."]
[WhiteTitle "GM"]
[WhiteFideId "1700073"]
[BlackFideId "1714805"]
[WhiteElo "2414"]
[BlackElo "2256"]

1. e4 {[%clk 01:30:53]} {[%emt 00:00:07]} c6 {[%clk 01:30:18]} {[%emt
00:00:42]} 2. d4 {[%clk 01:31:07]} {[%emt 00:00:15]} d5 {[%clk 01:30:41]}
{[%emt 00:00:07]} 3. Nd2 {[%clk 01:31:16]} {[%emt 00:00:21]} dxe4 {[%clk
01:31:00]} {[%emt 00:00:12]} 4. Nxe4 {[%clk 01:31:39]} {[%emt 00:00:06]} Nf6
{[%clk 01:30:40]} {[%emt 00:00:51]} 5. Nxf6+ {[%clk 01:31:38]} {[%emt
00:00:32]} exf6 {[%clk 01:31:00]} {[%emt 00:00:10]} 6. Be2 {[%clk 01:31:29]}
{[%emt 00:00:38]} Bd6 {[%clk 01:30:59]} {[%emt 00:00:31]} 7. Bf3 {[%clk
01:31:22]} {[%emt 00:00:37]} O-O {[%clk 01:31:06]} {[%emt 00:00:22]} 8. Ne2
{[%clk 01:31:33]} {[%emt 00:00:20]} Re8 {[%clk 01:29:33]} {[%emt 00:02:03]} 9.
O-O {[%clk 01:31:08]} {[%emt 00:00:55]} Nd7 {[%clk 01:14:56]} {[%emt 00:15:08]}
10. c4 {[%clk 01:13:48]} {[%emt 00:17:48]} f5 {[%clk 01:04:04]} {[%emt
00:11:23]} 11. Be3 {[%clk 00:50:26]} {[%emt 00:23:52]} Nf6 {[%clk 00:48:25]}
{[%emt 00:16:09]} 12. g3 {[%clk 00:42:30]} {[%emt 00:08:26]} Ng4 {[%clk
00:40:05]} {[%emt 00:08:50]} 13. Bf4 {[%clk 00:41:23]} {[%emt 00:01:38]} g5
{[%clk 00:36:03]} {[%emt 00:04:32]} 14. Bxd6 {[%clk 00:39:25]} {[%emt
00:02:27]} Qxd6 {[%clk 00:33:10]} {[%emt 00:03:24]} 15. Nc3 {[%clk 00:29:09]}
{[%emt 00:10:45]} Bd7 {[%clk 00:31:08]} {[%emt 00:02:32]} 16. Bxg4 {[%clk
00:13:37]} {[%emt 00:16:02]} fxg4 {[%clk 00:31:17]} {[%emt 00:00:20]} 17. Qd2
{[%clk 00:13:53]} {[%emt 00:00:15]} h6 {[%clk 00:30:00]} {[%emt 00:01:47]} 18.
Rfe1 {[%clk 00:13:56]} {[%emt 00:00:27]} Bf5 {[%clk 00:29:11]} {[%emt
00:01:19]} 19. Re3 {[%clk 00:13:09]} {[%emt 00:01:17]} Red8 {[%clk 00:15:49]}
{[%emt 00:13:52]} 20. Rae1 {[%clk 00:11:09]} {[%emt 00:02:30]} a5 {[%clk
00:11:13]} {[%emt 00:05:06]} 21. b3 {[%clk 00:08:46]} {[%emt 00:02:53]} Qb4
{[%clk 00:09:32]} {[%emt 00:02:11]} 22. Re5 {[%clk 00:08:23]} {[%emt 00:00:52]}
Bg6 {[%clk 00:09:07]} {[%emt 00:00:56]} 23. Qe3 {[%clk 00:08:27]} {[%emt
00:00:26]} Qa3 {[%clk 00:03:53]} {[%emt 00:05:44]} 24. d5 {[%clk 00:04:02]}
{[%emt 00:04:55]} Kh7 {[%clk 00:03:00]} {[%emt 00:01:23]} 25. Qd4 {[%clk
00:03:43]} {[%emt 00:00:49]} Qf8 {[%clk 00:03:00]} {[%emt 00:00:31]} 26. Re7
{[%clk 00:03:52]} {[%emt 00:00:20]} a4 {[%clk 00:01:53]} {[%emt 00:01:37]} 27.
d6 {[%clk 00:03:25]} {[%emt 00:00:57]} axb3 {[%clk 00:02:08]} {[%emt 00:00:15]}
28. axb3 {[%clk 00:03:53]} {[%emt 00:00:02]} b5 {[%clk 00:01:51]} {[%emt
00:00:47]} 29. cxb5 {[%clk 00:03:57]} {[%emt 00:00:26]} cxb5 {[%clk 00:02:15]}
{[%emt 00:00:06]} 30. Nxb5 {[%clk 00:03:19]} {[%emt 00:01:08]} Qg7 {[%clk
00:02:41]} {[%emt 00:00:05]} 31. Qc5 {[%clk 00:02:43]} {[%emt 00:01:06]} Ra1
{[%clk 00:02:39]} {[%emt 00:00:31]} 32. Nd4 {[%clk 00:02:55]} {[%emt 00:00:17]}
Rxe1+ {[%clk 00:02:58]} {[%emt 00:00:12]} 33. Rxe1 {[%clk 00:03:23]} {[%emt
00:00:02]} Qf6 {[%clk 00:03:22]} {[%emt 00:00:05]} 34. Nb5 {[%clk 00:03:40]}
{[%emt 00:00:14]} Qf3 {[%clk 00:03:17]} {[%emt 00:00:36]} 35. Qe5 {[%clk
00:03:17]} {[%emt 00:00:52]} Qxb3 {[%clk 00:02:53]} {[%emt 00:00:54]} 36. Qe7
{[%clk 00:02:56]} {[%emt 00:00:51]} Qb4 {[%clk 00:03:04]} {[%emt 00:00:19]} 37.
Rc1 {[%clk 00:02:39]} {[%emt 00:00:47]} Rb8 {[%clk 00:02:57]} {[%emt 00:00:37]}
38. Nc7 {[%clk 00:02:56]} {[%emt 00:00:13]} Qd2 {[%clk 00:03:14]} {[%emt
00:00:13]} 39. Rf1 {[%clk 00:03:01]} {[%emt 00:00:25]} Qb4 {[%clk 00:01:37]}
{[%emt 00:02:07]} 40. Nd5 {[%clk 00:02:51]} {[%emt 00:00:40]} Qd4 {[%clk
00:00:49]} {[%emt 00:01:17]} 41. Nf6+ {[%clk 00:00:52]} {[%emt 00:02:29]} Kg7
{[%clk 00:26:52]} {[%emt 00:04:27]} 42. Ne8+ {[%clk 00:30:01]} {[%emt
00:01:22]} Rxe8 {[%clk 00:25:11]} {[%emt 00:02:11]} 43. Qxe8 {[%clk 00:30:07]}
{[%emt 00:00:24]} Qxd6 {[%clk 00:25:09]} {[%emt 00:00:32]} 44. Re1 {[%clk
00:29:26]} {[%emt 00:01:10]} Bf5 {[%clk 00:18:54]} {[%emt 00:06:46]} 45. Qe5+
{[%clk 00:25:47]} {[%emt 00:04:08]} Qxe5 {[%clk 00:18:24]} {[%emt 00:01:00]} 46.
Rxe5 {[%clk 00:25:56]} {[%emt 00:00:22]} Kf6 {[%clk 00:18:36]} {[%emt
00:00:17]} 47. Re3 {[%clk 00:25:39]} {[%emt 00:00:47]} Be6 {[%clk 00:18:34]}
{[%emt 00:00:33]} 48. Kf1 {[%clk 00:25:54]} {[%emt 00:00:15]} Bc4+ {[%clk
00:18:53]} {[%emt 00:00:11]} 49. Ke1 {[%clk 00:26:15]} {[%emt 00:00:09]} Be6
{[%clk 00:19:21]} {[%emt 00:00:02]} 50. Kd2 {[%clk 00:26:39]} {[%emt 00:00:07]}
Bd5 {[%clk 00:19:40]} {[%emt 00:00:10]} 51. Kc3 {[%clk 00:27:04]} {[%emt
00:00:05]} Be6 {[%clk 00:20:00]} {[%emt 00:00:10]} 52. Kd4 {[%clk 00:27:27]}
{[%emt 00:00:08]} Ba2 {[%clk 00:19:52]} {[%emt 00:00:37]} 53. Ra3 {[%clk
00:27:00]} {[%emt 00:00:57]} Be6 {[%clk 00:20:02]} {[%emt 00:00:20]} 54. Ra6
{[%clk 00:27:18]} {[%emt 00:00:12]} Kf5 {[%clk 00:17:27]} {[%emt 00:03:05]} 55.
Ra5+ {[%clk 00:26:06]} {[%emt 00:01:41]} Kf6 {[%clk 00:17:36]} {[%emt
00:00:21]} 56. Ke4 {[%clk 00:26:12]} {[%emt 00:00:25]} Bb3 {[%clk 00:17:08]}
{[%emt 00:00:58]} 57. Ra6+ {[%clk 00:26:27]} {[%emt 00:00:14]} Kg7 {[%clk
00:12:31]} {[%emt 00:05:08]} 58. Kf5 {[%clk 00:24:12]} {[%emt 00:02:44]} Bd1
{[%clk 00:12:45]} {[%emt 00:00:16]} 59. Rd6 {[%clk 00:24:19]} {[%emt 00:00:24]}
Be2 {[%clk 00:10:33]} {[%emt 00:02:42]} 60. Rd8 {[%clk 00:24:26]} {[%emt
00:00:22]} Bc4 {[%clk 00:07:07]} {[%emt 00:03:57]} 61. Kxg4 {[%clk 00:24:18]}
{[%emt 00:00:37]} Kg6 {[%clk 00:07:20]} {[%emt 00:00:17]} 62. Kf3 {[%clk
00:24:09]} {[%emt 00:00:39]} Bb3 {[%clk 00:06:17]} {[%emt 00:01:34]} 63. Ke3
{[%clk 00:23:35]} {[%emt 00:01:03]} Kh5 {[%clk 00:05:48]} {[%emt 00:00:59]} 64.
Rh8 {[%clk 00:23:44]} {[%emt 00:00:21]} Ba2 {[%clk 00:05:58]} {[%emt 00:00:21]}
65. Kd4 {[%clk 00:21:46]} {[%emt 00:02:28]} Kg6 {[%clk 00:04:59]} {[%emt
00:01:29]} 66. Ra8 {[%clk 00:21:41]} {[%emt 00:00:34]} Bb3 {[%clk 00:05:19]}
{[%emt 00:00:10]} 67. Ra3 {[%clk 00:20:08]} {[%emt 00:02:03]} Bd1 {[%clk
00:05:30]} {[%emt 00:00:20]} 68. Ke5 {[%clk 00:19:02]} {[%emt 00:01:36]} Bc2
{[%clk 00:05:24]} {[%emt 00:00:36]} 69. Ra6+ {[%clk 00:19:16]} {[%emt
00:00:16]} Kg7 {[%clk 00:04:50]} {[%emt 00:01:04]} 70. f4 {[%clk 00:18:45]}
{[%emt 00:01:00]} gxf4 {[%clk 00:05:09]} {[%emt 00:00:11]} 71. gxf4 {[%clk
00:19:05]} {[%emt 00:00:11]} Bb3 {[%clk 00:05:21]} {[%emt 00:00:18]} 72. f5
{[%clk 00:19:19]} {[%emt 00:00:15]} Bc4 {[%clk 00:05:25]} {[%emt 00:00:27]} 73.
Rb6 {[%clk 00:19:29]} {[%emt 00:00:20]} Be2 {[%clk 00:05:24]} {[%emt 00:00:30]}
74. Rc6 {[%clk 00:18:28]} {[%emt 00:01:32]} Bd1 {[%clk 00:03:56]} {[%emt
00:01:58]} 75. Rc3 {[%clk 00:18:38]} {[%emt 00:00:20]} Be2 {[%clk 00:03:39]}
{[%emt 00:00:48]} 76. Rg3+ {[%clk 00:18:52]} {[%emt 00:00:15]} Kf8 {[%clk
00:03:06]} {[%emt 00:01:03]} 77. Kf6 {[%clk 00:19:01]} 1-0

[Event "Elitserien 2019/2020, round 1-3"]
[Site "Uppsala University, Gamla torget, Uppsala, Sweden"]
[Date "2019.10.18"]
[Round "1.13"]
[White "Rydstrom, Tom"]
[Black "Bellon Lopez, Juan Manuel"]
[Result "0-1"]
[TimeControl "90 minutes for 40 moves + 30 minutes for the rest of the game + 30 seconds per move from move one."]
[WhiteTitle "FM"]
[BlackTitle "GM"]
[WhiteFideId "1714830"]
[BlackFideId "2200031"]
[WhiteElo "2322"]
[BlackElo "2334"]

1. e4 {[%clk 01:28:21]} {[%emt 00:02:39]} c5 {[%clk 01:31:16]} {[%emt
00:00:14]} 2. Nf3 {[%clk 01:28:47]} {[%emt 00:00:04]} e6 {[%clk 01:31:34]}
{[%emt 00:00:11]} 3. d4 {[%clk 01:28:57]} {[%emt 00:00:21]} cxd4 {[%clk
01:31:57]} {[%emt 00:00:07]} 4. Nxd4 {[%clk 01:29:24]} {[%emt 00:00:03]} a6
{[%clk 01:32:20]} {[%emt 00:00:06]} 5. Nc3 {[%clk 01:29:24]} {[%emt 00:00:31]}
Qc7 {[%clk 01:32:41]} {[%emt 00:00:09]} 6. g3 {[%clk 01:28:12]} {[%emt
00:01:42]} Nf6 {[%clk 01:28:58]} {[%emt 00:04:12]} 7. Bg2 {[%clk 01:28:39]}
{[%emt 00:00:04]} Nc6 {[%clk 01:28:43]} {[%emt 00:00:45]} 8. Nb3 {[%clk
01:28:58]} {[%emt 00:00:11]} d6 {[%clk 01:28:25]} {[%emt 00:00:46]} 9. O-O
{[%clk 01:29:21]} {[%emt 00:00:08]} Be7 {[%clk 01:28:21]} {[%emt 00:00:34]} 10.
f4 {[%clk 01:29:25]} {[%emt 00:00:27]} O-O {[%clk 01:28:16]} {[%emt 00:00:35]}
11. Be3 {[%clk 01:29:48]} {[%emt 00:00:07]} Rb8 {[%clk 01:24:50]} {[%emt
00:03:55]} 12. g4 {[%clk 01:29:13]} {[%emt 00:01:06]} b5 {[%clk 01:19:13]}
{[%emt 00:06:07]} 13. g5 {[%clk 01:29:28]} {[%emt 00:00:15]} Nd7 {[%clk
01:17:55]} {[%emt 00:01:47]} 14. a3 {[%clk 01:27:11]} {[%emt 00:02:49]} Nb6
{[%clk 01:16:48]} {[%emt 00:01:36]} 15. f5 {[%clk 01:15:32]} {[%emt 00:12:09]}
Nc4 {[%clk 01:16:48]} {[%emt 00:00:29]} 16. Bc1 {[%clk 01:15:52]} {[%emt
00:00:10]} Re8 {[%clk 01:08:01]} {[%emt 00:09:17]} 17. Rf3 {[%clk 01:13:58]}
{[%emt 00:02:25]} N6e5 {[%clk 00:59:35]} {[%emt 00:08:55]} 18. Rh3 {[%clk
00:46:06]} {[%emt 00:28:23]} g6 {[%clk 00:59:46]} {[%emt 00:00:18]} 19. f6
{[%clk 00:42:36]} {[%emt 00:04:00]} Bf8 {[%clk 00:59:20]} {[%emt 00:00:55]} 20.
Qe1 {[%clk 00:40:31]} {[%emt 00:02:36]} Qa7+ {[%clk 00:45:09]} {[%emt
00:14:40]} 21. Kh1 {[%clk 00:39:26]} {[%emt 00:01:36]} h5 {[%clk 00:41:57]}
{[%emt 00:03:42]} 22. gxh6 {[%clk 00:34:48]} {[%emt 00:05:09]} Kh7 {[%clk
00:42:10]} {[%emt 00:00:16]} 23. Rg3 {[%clk 00:34:23]} {[%emt 00:00:56]} d5
{[%clk 00:36:54]} {[%emt 00:05:45]} 24. h4 {[%clk 00:31:10]} {[%emt 00:03:43]}
Bd6 {[%clk 00:34:21]} {[%emt 00:03:02]} 25. h5 {[%clk 00:24:27]} {[%emt
00:07:14]} Bb7 {[%clk 00:30:32]} {[%emt 00:04:18]} 26. Nd2 {[%clk 00:19:48]}
{[%emt 00:05:10]} d4 {[%clk 00:28:13]} {[%emt 00:02:49]} 27. Nd1 {[%clk
00:18:43]} {[%emt 00:01:35]} Rg8 {[%clk 00:24:33]} {[%emt 00:04:11]} 28. b3
{[%clk 00:16:41]} {[%emt 00:02:32]} Nxd2 {[%clk 00:15:24]} {[%emt 00:09:38]} 29.
Bxd2 {[%clk 00:17:09]} {[%emt 00:00:01]} Nd7 {[%clk 00:13:27]} {[%emt
00:02:28]} 30. hxg6+ {[%clk 00:15:35]} {[%emt 00:02:04]} fxg6 {[%clk 00:10:32]}
{[%emt 00:03:25]} 31. Rf3 {[%clk 00:15:11]} {[%emt 00:00:54]} Ne5 {[%clk
00:09:13]} {[%emt 00:01:48]} 32. Rf1 {[%clk 00:15:15]} {[%emt 00:00:27]} Rbf8
{[%clk 00:08:13]} {[%emt 00:01:30]} 33. Nb2 {[%clk 00:09:20]} {[%emt 00:06:26]}
g5 {[%clk 00:07:39]} {[%emt 00:01:04]} 34. Bb4 {[%clk 00:06:32]} {[%emt
00:03:17]} Qb8 {[%clk 00:05:18]} {[%emt 00:02:51]} 35. Rd1 {[%clk 00:07:01]}
{[%emt 00:00:01]} Bxb4 {[%clk 00:02:32]} {[%emt 00:03:16]} 36. axb4 {[%clk
00:01:50]} {[%emt 00:05:40]} Ng4 {[%clk 00:02:45]} {[%emt 00:00:18]} 37. e5
{[%clk 00:02:19]} {[%emt 00:00:01]} Bxg2+ {[%clk 00:01:34]} {[%emt 00:01:42]}
38. Kxg2 {[%clk 00:02:48]} {[%emt 00:00:01]} Ne3+ {[%clk 00:02:00]} {[%emt
00:00:03]} 39. Kg1 {[%clk 00:03:16]} {[%emt 00:00:02]} Qxe5 {[%clk 00:01:33]}
{[%emt 00:00:57]} 40. Rd2 {[%clk 00:02:58]} {[%emt 00:00:47]} Rg6 {[%clk
00:01:05]} {[%emt 00:00:59]} 41. f7 {[%clk 00:01:30]} {[%emt 00:01:59]} Qe4
{[%clk 00:29:01]} {[%emt 00:02:32]} 42. Qe2 {[%clk 00:30:55]} {[%emt 00:01:05]}
Qh4 {[%clk 00:23:14]} {[%emt 00:06:16]} 43. Rf2 {[%clk 00:30:20]} {[%emt
00:01:06]} Qg3+ {[%clk 00:22:01]} {[%emt 00:01:43]} 0-1